[Event "Titled Tuesday Blitz November 08 Late 2022"]
[White "Janaszak, Dawid"]
[Black "Howell, David W L"]
[WhiteFideId "1119206"]
[BlackFideId "410608"]
[WhiteElo "2226"]
[BlackElo "2567"]
[Result "0-1"]
[Round "08"]
[TimeControl "180+1"]
[Date "2022.11.09"]
[WhiteClock "0:00:07"]
[BlackClock "0:00:04"]

1. e4 {[%clk 0:03:00]}  g6 {[%clk 0:02:49]} 2. Nc3 {[%clk 0:02:59]}  Bg7 {[%clk 0:02:49]} 3. Bc4 {[%clk 0:02:59]}  e6 {[%clk 0:02:42]} 4. h4 {[%clk 0:02:59]}  h6 {[%clk 0:02:41]} 5. h5 {[%clk 0:02:58]}  g5 {[%clk 0:02:41]} 6. d4 {[%clk 0:02:58]}  Nc6 {[%clk 0:02:31]} 7. Nge2 {[%clk 0:02:57]}  Nge7 {[%clk 0:02:22]} 8. f4 {[%clk 0:02:38]}  d5 {[%clk 0:02:23]} 9. Bb3 {[%clk 0:02:25]}  g4 {[%clk 0:02:22]} 10. e5 {[%clk 0:02:18]}  Nf5 {[%clk 0:02:18]} 11. Nb1 {[%clk 0:01:55]}  Na5 {[%clk 0:02:07]} 12. Qd3 {[%clk 0:01:45]}  Bd7 {[%clk 0:01:53]} 13. Ng3 {[%clk 0:01:40]}  Nxb3 {[%clk 0:01:38]} 14. axb3 {[%clk 0:01:39]}  Bf8 {[%clk 0:01:39]} 15. Nc3 {[%clk 0:01:24]}  c6 {[%clk 0:01:24]} 16. Bd2 {[%clk 0:01:19]}  Be7 {[%clk 0:01:21]} 17. Nxf5 {[%clk 0:01:17]}  exf5 {[%clk 0:01:22]} 18. Nd1 {[%clk 0:01:12]}  Be6 {[%clk 0:00:59]} 19. Ne3 {[%clk 0:01:10]}  Qd7 {[%clk 0:01:00]} 20. b4 {[%clk 0:01:01]}  O-O {[%clk 0:00:59]} 21. c3 {[%clk 0:00:50]}  a6 {[%clk 0:00:57]} 22. g3 {[%clk 0:00:43]}  Kh8 {[%clk 0:00:54]} 23. Kf2 {[%clk 0:00:43]}  Rg8 {[%clk 0:00:52]} 24. Kg2 {[%clk 0:00:42]}  Raf8 {[%clk 0:00:52]} 25. Rae1 {[%clk 0:00:39]}  f6 {[%clk 0:00:52]} 26. Nd1 {[%clk 0:00:37]}  fxe5 {[%clk 0:00:27]} 27. fxe5 {[%clk 0:00:37]}  f4 {[%clk 0:00:28]} 28. Bxf4 {[%clk 0:00:36]}  Bf5 {[%clk 0:00:28]} 29. Qd2 {[%clk 0:00:35]}  Bg5 {[%clk 0:00:21]} 30. Nf2 {[%clk 0:00:32]}  Bxf4 {[%clk 0:00:19]} 31. gxf4 {[%clk 0:00:33]}  g3 {[%clk 0:00:20]} 32. Nh3 {[%clk 0:00:30]}  Be4+ {[%clk 0:00:17]} 33. Rxe4 {[%clk 0:00:30]}  dxe4 {[%clk 0:00:18]} 34. f5 {[%clk 0:00:29]}  Rxf5 {[%clk 0:00:16]} 35. Qxh6+ {[%clk 0:00:30]}  Qh7 {[%clk 0:00:17]} 36. Qxh7+ {[%clk 0:00:24]}  Kxh7 {[%clk 0:00:18]} 37. Re1 {[%clk 0:00:24]}  Rg4 {[%clk 0:00:16]} 38. Re3 {[%clk 0:00:20]}  Kh6 {[%clk 0:00:09]} 39. e6 {[%clk 0:00:16]}  Rf6 {[%clk 0:00:08]} 40. Ng1 {[%clk 0:00:09]}  Rxe6 {[%clk 0:00:07]} 41. Ne2 {[%clk 0:00:10]}  Kxh5 {[%clk 0:00:06]} 42. Nxg3+ {[%clk 0:00:10]}  Kg5 {[%clk 0:00:06]} 43. Kf2 {[%clk 0:00:09]}  Rf6+ {[%clk 0:00:03]} 44. Ke2 {[%clk 0:00:09]}  Rff4 {[%clk 0:00:03]} 45. c4 {[%clk 0:00:08]}  Kh4 {[%clk 0:00:03]} 46. Nf1 {[%clk 0:00:07]}  Rg2+ {[%clk 0:00:03]} 47. Ke1 {[%clk 0:00:07]}  Rg1 {[%clk 0:00:04]} 0-1


[Site "https://www.chess.com"]

[Event "Titled Tuesday Blitz November 08 Late 2022"]
[White "Jorquera, Marcelo"]
[Black "Lopez Perdomo, Juan David"]
[WhiteFideId "3401197"]
[BlackFideId "4405137"]
[WhiteElo "2136"]
[BlackElo "1965"]
[Result "1-0"]
[Round "08"]
[TimeControl "180+1"]
[Date "2022.11.09"]
[WhiteClock "0:00:30"]
[BlackClock "0:00:13"]

1. e4 {[%clk 0:03:00]}  e6 {[%clk 0:02:52]} 2. d4 {[%clk 0:03:00]}  d5 {[%clk 0:02:52]} 3. Nc3 {[%clk 0:03:00]}  Bb4 {[%clk 0:02:53]} 4. Bd2 {[%clk 0:03:00]}  Nf6 {[%clk 0:02:51]} 5. e5 {[%clk 0:02:58]}  Nfd7 {[%clk 0:02:50]} 6. Qg4 {[%clk 0:02:58]}  Kf8 {[%clk 0:02:48]} 7. f4 {[%clk 0:02:47]}  f5 {[%clk 0:02:48]} 8. Qd1 {[%clk 0:02:21]}  c5 {[%clk 0:02:47]} 9. Nb5 {[%clk 0:02:18]}  Bxd2+ {[%clk 0:02:21]} 10. Qxd2 {[%clk 0:02:17]}  cxd4 {[%clk 0:02:18]} 11. Nf3 {[%clk 0:02:13]}  Nc5 {[%clk 0:02:18]} 12. Bd3 {[%clk 0:02:07]}  Ne4 {[%clk 0:02:17]} 13. Bxe4 {[%clk 0:02:06]}  dxe4 {[%clk 0:02:16]} 14. Nfxd4 {[%clk 0:02:04]}  Nc6 {[%clk 0:02:16]} 15. O-O-O {[%clk 0:02:02]}  Nxd4 {[%clk 0:02:10]} 16. Qxd4 {[%clk 0:02:00]}  Qxd4 {[%clk 0:02:05]} 17. Rxd4 {[%clk 0:02:00]}  Ke7 {[%clk 0:02:03]} 18. Rhd1 {[%clk 0:01:49]}  a6 {[%clk 0:01:57]} 19. Nd6 {[%clk 0:01:48]}  Bd7 {[%clk 0:01:01]} 20. Nxf5+ {[%clk 0:01:46]}  exf5 {[%clk 0:00:59]} 21. Rxd7+ {[%clk 0:01:46]}  Kf8 {[%clk 0:00:55]} 22. Rxb7 {[%clk 0:01:40]}  Ke8 {[%clk 0:00:48]} 23. Rdd7 {[%clk 0:01:33]}  Rd8 {[%clk 0:00:49]} 24. Rxd8+ {[%clk 0:01:32]}  Kxd8 {[%clk 0:00:49]} 25. Rb8+ {[%clk 0:01:33]}  Ke7 {[%clk 0:00:23]} 26. Rxh8 {[%clk 0:01:34]}  Ke6 {[%clk 0:00:09]} 27. Kd2 {[%clk 0:01:29]}  Kd5 {[%clk 0:00:08]} 28. h4 {[%clk 0:01:22]}  g5 {[%clk 0:00:08]} 29. hxg5 {[%clk 0:01:21]}  h5 {[%clk 0:00:09]} 30. gxh6 {[%clk 0:01:20]}  a5 {[%clk 0:00:10]} 31. Ke3 {[%clk 0:01:18]}  a4 {[%clk 0:00:11]} 32. a3 {[%clk 0:01:18]}  Kc4 {[%clk 0:00:11]} 33. h7 {[%clk 0:01:16]}  Kb5 {[%clk 0:00:11]} 34. Rc8 {[%clk 0:01:15]}  Ka5 {[%clk 0:00:10]} 35. h8=Q {[%clk 0:01:13]}  Kb5 {[%clk 0:00:11]} 36. Qf8 {[%clk 0:01:06]}  Ka5 {[%clk 0:00:12]} 37. Qb4+ {[%clk 0:01:05]}  Ka6 {[%clk 0:00:13]} 38. Ra8# {[%clk 0:00:30]} 1-0


[Site "https://www.chess.com"]

[Event "Titled Tuesday Blitz November 08 Late 2022"]
[White "Kaganskiy, Gleb"]
[Black "Mesa Cruz, Juan Carlos"]
[WhiteFideId "4132025"]
[BlackFideId "6423400"]
[WhiteElo "2165"]
[BlackElo "2059"]
[Result "0-1"]
[Round "08"]
[TimeControl "180+1"]
[Date "2022.11.09"]
[WhiteClock "0:00:40"]
[BlackClock "0:00:48"]

1. e4 {[%clk 0:02:53]}  c5 {[%clk 0:02:58]} 2. Nf3 {[%clk 0:02:52]}  d6 {[%clk 0:02:58]} 3. Nc3 {[%clk 0:02:50]}  Nf6 {[%clk 0:02:57]} 4. e5 {[%clk 0:02:49]}  dxe5 {[%clk 0:02:57]} 5. Nxe5 {[%clk 0:02:50]}  e6 {[%clk 0:02:57]} 6. Bb5+ {[%clk 0:02:47]}  Nbd7 {[%clk 0:02:56]} 7. d4 {[%clk 0:02:47]}  a6 {[%clk 0:02:46]} 8. Bxd7+ {[%clk 0:02:45]}  Bxd7 {[%clk 0:02:45]} 9. Bg5 {[%clk 0:02:39]}  Be7 {[%clk 0:02:32]} 10. dxc5 {[%clk 0:02:38]}  Bxc5 {[%clk 0:02:23]} 11. Bxf6 {[%clk 0:02:28]}  gxf6 {[%clk 0:02:22]} 12. Nxf7 {[%clk 0:02:21]}  Bxf2+ {[%clk 0:02:12]} 13. Kxf2 {[%clk 0:02:22]}  Qb6+ {[%clk 0:02:11]} 14. Ke1 {[%clk 0:02:15]}  Qe3+ {[%clk 0:02:10]} 15. Qe2 {[%clk 0:02:14]}  Qxe2+ {[%clk 0:02:09]} 16. Kxe2 {[%clk 0:02:14]}  Kxf7 {[%clk 0:02:08]} 17. Ne4 {[%clk 0:02:14]}  Bc6 {[%clk 0:02:03]} 18. Ke3 {[%clk 0:02:13]}  Rhg8 {[%clk 0:02:00]} 19. Rhf1 {[%clk 0:02:00]}  Bxe4 {[%clk 0:01:58]} 20. Kxe4 {[%clk 0:01:59]}  Rxg2 {[%clk 0:01:58]} 21. Rad1 {[%clk 0:01:59]}  Re8 {[%clk 0:01:44]} 22. Rd7+ {[%clk 0:01:56]}  Re7 {[%clk 0:01:43]} 23. Rfd1 {[%clk 0:01:52]}  Rxc2 {[%clk 0:01:38]} 24. Rxe7+ {[%clk 0:01:42]}  Kxe7 {[%clk 0:01:38]} 25. Rg1 {[%clk 0:01:42]}  Rxb2 {[%clk 0:01:33]} 26. Rg7+ {[%clk 0:01:42]}  Kd6 {[%clk 0:01:32]} 27. Rxh7 {[%clk 0:01:43]}  Rb4+ {[%clk 0:01:30]} 28. Ke3 {[%clk 0:01:42]}  b5 {[%clk 0:01:27]} 29. h4 {[%clk 0:01:39]}  Ra4 {[%clk 0:01:27]} 30. h5 {[%clk 0:01:39]}  Ra3+ {[%clk 0:01:27]} 31. Ke4 {[%clk 0:01:38]}  f5+ {[%clk 0:01:22]} 32. Kf4 {[%clk 0:01:38]}  Ra4+ {[%clk 0:01:19]} 33. Kg5 {[%clk 0:01:37]}  Rxa2 {[%clk 0:01:19]} 34. h6 {[%clk 0:01:36]}  Ke5 {[%clk 0:01:17]} 35. Ra7 {[%clk 0:01:30]}  Rh2 {[%clk 0:01:17]} 36. Kg6 {[%clk 0:01:27]}  f4 {[%clk 0:01:15]} 37. Rxa6 {[%clk 0:01:10]}  f3 {[%clk 0:01:11]} 38. Ra5 {[%clk 0:01:10]}  f2 {[%clk 0:01:02]} 39. Rxb5+ {[%clk 0:01:10]}  Kf4 {[%clk 0:01:02]} 40. Rb8 {[%clk 0:01:03]}  e5 {[%clk 0:00:58]} 41. Rf8+ {[%clk 0:01:00]}  Kg3 {[%clk 0:00:57]} 42. h7 {[%clk 0:00:58]}  e4 {[%clk 0:00:56]} 43. Rf5 {[%clk 0:00:47]}  e3 {[%clk 0:00:51]} 44. Rg5+ {[%clk 0:00:45]}  Kf3 {[%clk 0:00:50]} 45. Rh5 {[%clk 0:00:40]}  Rxh5 {[%clk 0:00:50]} 46. Kxh5 {[%clk 0:00:39]}  f1=Q {[%clk 0:00:49]} 47. h8=Q {[%clk 0:00:40]}  Qh3+ {[%clk 0:00:48]} 0-1


[Site "https://www.chess.com"]

[Event "Titled Tuesday Blitz November 08 Late 2022"]
[White "Kaplan, Avi Harrison"]
[Black "Bibilashvili, Lali"]
[WhiteFideId "30934559"]
[BlackFideId "13604236"]
[WhiteElo "1983"]
[BlackElo "1819"]
[Result "1-0"]
[Round "08"]
[TimeControl "180+1"]
[Date "2022.11.09"]
[WhiteClock "0:01:16"]
[BlackClock "0:00:38"]

1. d4 {[%clk 0:03:00]}  Nf6 {[%clk 0:02:58]} 2. c4 {[%clk 0:02:57]}  g6 {[%clk 0:02:58]} 3. Nc3 {[%clk 0:02:57]}  Bg7 {[%clk 0:02:58]} 4. e4 {[%clk 0:02:57]}  d6 {[%clk 0:02:58]} 5. Nge2 {[%clk 0:02:57]}  O-O {[%clk 0:02:57]} 6. Ng3 {[%clk 0:02:56]}  Nbd7 {[%clk 0:02:57]} 7. Be2 {[%clk 0:02:56]}  e5 {[%clk 0:02:57]} 8. d5 {[%clk 0:02:56]}  a5 {[%clk 0:02:56]} 9. h4 {[%clk 0:02:56]}  h5 {[%clk 0:02:50]} 10. Bg5 {[%clk 0:02:55]}  Nc5 {[%clk 0:02:49]} 11. Bxh5 {[%clk 0:02:55]}  Qe8 {[%clk 0:02:25]} 12. Be2 {[%clk 0:02:43]}  Nh7 {[%clk 0:02:12]} 13. Be3 {[%clk 0:02:38]}  f5 {[%clk 0:02:11]} 14. Bxc5 {[%clk 0:02:18]}  dxc5 {[%clk 0:02:10]} 15. h5 {[%clk 0:02:18]}  g5 {[%clk 0:02:02]} 16. Nxf5 {[%clk 0:02:17]}  Bxf5 {[%clk 0:02:01]} 17. exf5 {[%clk 0:02:18]}  Rxf5 {[%clk 0:02:01]} 18. Bg4 {[%clk 0:02:15]}  Rf4 {[%clk 0:01:58]} 19. Qe2 {[%clk 0:02:09]}  e4 {[%clk 0:01:56]} 20. O-O-O {[%clk 0:02:05]}  Qe5 {[%clk 0:01:42]} 21. g3 {[%clk 0:01:56]}  Rxg4 {[%clk 0:01:40]} 22. Qxg4 {[%clk 0:01:55]}  Re8 {[%clk 0:01:39]} 23. Rhe1 {[%clk 0:01:53]}  Nf6 {[%clk 0:01:35]} 24. Qe2 {[%clk 0:01:48]}  a4 {[%clk 0:01:33]} 25. f3 {[%clk 0:01:40]}  a3 {[%clk 0:01:29]} 26. Nxe4 {[%clk 0:01:38]}  axb2+ {[%clk 0:01:15]} 27. Kb1 {[%clk 0:01:36]}  Ra8 {[%clk 0:00:54]} 28. Nxf6+ {[%clk 0:01:34]}  Qxf6 {[%clk 0:00:54]} 29. Qe6+ {[%clk 0:01:33]}  Qxe6 {[%clk 0:00:53]} 30. dxe6 {[%clk 0:01:34]}  Kf8 {[%clk 0:00:53]} 31. Rd7 {[%clk 0:01:32]}  Bc3 {[%clk 0:00:41]} 32. Re3 {[%clk 0:01:21]}  Bd4 {[%clk 0:00:40]} 33. Re4 {[%clk 0:01:21]}  Ra3 {[%clk 0:00:39]} 34. e7+ {[%clk 0:01:16]}  Ke8 {[%clk 0:00:38]} 35. Rd8+ {[%clk 0:01:16]} 1-0


[Site "https://www.chess.com"]

[Event "Titled Tuesday Blitz November 08 Late 2022"]
[White "Kleiman, Jake"]
[Black "Goryachkina, Aleksandra"]
[WhiteFideId "2020041"]
[BlackFideId "4147103"]
[WhiteElo "2507"]
[BlackElo "2484"]
[Result "1-0"]
[Round "08"]
[TimeControl "180+1"]
[Date "2022.11.09"]
[WhiteClock "0:00:15"]
[BlackClock "0:00:01"]

1. e4 {[%clk 0:03:00]}  c5 {[%clk 0:02:59]} 2. c3 {[%clk 0:03:01]}  d5 {[%clk 0:02:59]} 3. exd5 {[%clk 0:03:02]}  Qxd5 {[%clk 0:02:59]} 4. d4 {[%clk 0:03:02]}  Nf6 {[%clk 0:02:59]} 5. Nf3 {[%clk 0:03:03]}  Bg4 {[%clk 0:02:58]} 6. Nbd2 {[%clk 0:03:03]}  Bxf3 {[%clk 0:02:37]} 7. Nxf3 {[%clk 0:02:59]}  e6 {[%clk 0:02:33]} 8. Be3 {[%clk 0:02:43]}  Nbd7 {[%clk 0:02:17]} 9. Be2 {[%clk 0:02:31]}  Be7 {[%clk 0:02:16]} 10. O-O {[%clk 0:02:31]}  O-O {[%clk 0:02:14]} 11. h3 {[%clk 0:02:31]}  Rfd8 {[%clk 0:02:12]} 12. Re1 {[%clk 0:02:25]}  a6 {[%clk 0:02:06]} 13. a4 {[%clk 0:02:25]}  Rac8 {[%clk 0:02:02]} 14. a5 {[%clk 0:02:24]}  Qc6 {[%clk 0:01:51]} 15. Qb3 {[%clk 0:02:13]}  Nd5 {[%clk 0:01:48]} 16. Bd2 {[%clk 0:02:13]}  Qc7 {[%clk 0:01:41]} 17. Bc4 {[%clk 0:01:49]}  N7f6 {[%clk 0:01:30]} 18. Bf1 {[%clk 0:01:40]}  cxd4 {[%clk 0:01:24]} 19. Nxd4 {[%clk 0:01:40]}  Bc5 {[%clk 0:01:23]} 20. Ra4 {[%clk 0:01:30]}  h6 {[%clk 0:01:10]} 21. Bc1 {[%clk 0:01:17]}  Rd7 {[%clk 0:00:50]} 22. g3 {[%clk 0:01:07]}  Rcd8 {[%clk 0:00:46]} 23. Bg2 {[%clk 0:01:07]}  Kh8 {[%clk 0:00:23]} 24. Kf1 {[%clk 0:01:02]}  Ne7 {[%clk 0:00:21]} 25. Nf3 {[%clk 0:00:55]}  Nc6 {[%clk 0:00:17]} 26. Rh4 {[%clk 0:00:46]}  Nxa5 {[%clk 0:00:16]} 27. Qc2 {[%clk 0:00:42]}  Bf8 {[%clk 0:00:15]} 28. Bf4 {[%clk 0:00:36]}  Qc8 {[%clk 0:00:14]} 29. Ne5 {[%clk 0:00:29]}  Rc7 {[%clk 0:00:14]} 30. Bg5 {[%clk 0:00:22]}  Nc4 {[%clk 0:00:05]} 31. Ng4 {[%clk 0:00:18]}  Nxg4 {[%clk 0:00:03]} 32. Bxd8 {[%clk 0:00:16]}  Qxd8 {[%clk 0:00:02]} 33. Rxg4 {[%clk 0:00:17]}  b5 {[%clk 0:00:02]} 34. Rd4 {[%clk 0:00:16]}  Rd7 {[%clk 0:00:02]} 35. Red1 {[%clk 0:00:17]}  Rxd4 {[%clk 0:00:02]} 36. Rxd4 {[%clk 0:00:18]}  Qc7 {[%clk 0:00:03]} 37. b4 {[%clk 0:00:16]}  Be7 {[%clk 0:00:02]} 38. Qd3 {[%clk 0:00:16]}  Bf6 {[%clk 0:00:02]} 39. Rd7 {[%clk 0:00:15]}  Qb6 {[%clk 0:00:02]} 40. Rxf7 {[%clk 0:00:15]}  a5 {[%clk 0:00:01]} 41. Rf8# {[%clk 0:00:15]} 1-0


[Site "https://www.chess.com"]

[Event "Titled Tuesday Blitz November 08 Late 2022"]
[White "Kobo, Ori"]
[Black "Mendez Fortes, Eduardo Jesus"]
[WhiteFideId "2812320"]
[BlackFideId "3502376"]
[WhiteElo "2447"]
[BlackElo "2307"]
[Result "1-0"]
[Round "08"]
[TimeControl "180+1"]
[Date "2022.11.09"]
[WhiteClock "0:00:10"]
[BlackClock "0:00:11"]

1. e4 {[%clk 0:03:00]}  e5 {[%clk 0:02:59]} 2. a3 {[%clk 0:03:01]}  Nf6 {[%clk 0:02:58]} 3. Nc3 {[%clk 0:03:01]}  Bc5 {[%clk 0:02:53]} 4. Nf3 {[%clk 0:02:56]}  d6 {[%clk 0:02:53]} 5. Bc4 {[%clk 0:02:48]}  O-O {[%clk 0:02:52]} 6. d3 {[%clk 0:02:48]}  h6 {[%clk 0:02:50]} 7. Na4 {[%clk 0:02:47]}  Bb6 {[%clk 0:02:50]} 8. Nxb6 {[%clk 0:02:46]}  axb6 {[%clk 0:02:51]} 9. O-O {[%clk 0:02:45]}  c6 {[%clk 0:02:52]} 10. Bb3 {[%clk 0:02:35]}  Be6 {[%clk 0:02:51]} 11. Bxe6 {[%clk 0:02:22]}  fxe6 {[%clk 0:02:52]} 12. Re1 {[%clk 0:02:20]}  c5 {[%clk 0:02:51]} 13. c3 {[%clk 0:02:20]}  Nc6 {[%clk 0:02:45]} 14. Bd2 {[%clk 0:02:20]}  Qc7 {[%clk 0:02:39]} 15. b4 {[%clk 0:02:17]}  d5 {[%clk 0:02:33]} 16. exd5 {[%clk 0:02:10]}  exd5 {[%clk 0:02:34]} 17. b5 {[%clk 0:02:08]}  Na5 {[%clk 0:02:30]} 18. Nxe5 {[%clk 0:02:00]}  c4 {[%clk 0:02:30]} 19. Bf4 {[%clk 0:01:30]}  Qc8 {[%clk 0:02:07]} 20. Ng6 {[%clk 0:01:27]}  Rf7 {[%clk 0:02:07]} 21. Ne7+ {[%clk 0:01:27]}  Rxe7 {[%clk 0:02:07]} 22. Rxe7 {[%clk 0:01:27]}  Qf5 {[%clk 0:02:07]} 23. Be5 {[%clk 0:01:15]}  Nb3 {[%clk 0:02:02]} 24. Ra2 {[%clk 0:01:08]}  Qxd3 {[%clk 0:01:21]} 25. Qe1 {[%clk 0:01:06]}  Rf8 {[%clk 0:00:51]} 26. h3 {[%clk 0:01:05]}  Nc5 {[%clk 0:00:42]} 27. Rd2 {[%clk 0:01:00]}  Qf5 {[%clk 0:00:40]} 28. Qe3 {[%clk 0:00:37]}  Nce4 {[%clk 0:00:32]} 29. Re2 {[%clk 0:00:28]}  Ra8 {[%clk 0:00:20]} 30. f3 {[%clk 0:00:28]}  Nc5 {[%clk 0:00:19]} 31. Bxf6 {[%clk 0:00:21]}  Qxf6 {[%clk 0:00:16]} 32. Re8+ {[%clk 0:00:21]}  Rxe8 {[%clk 0:00:16]} 33. Qxe8+ {[%clk 0:00:22]}  Kh7 {[%clk 0:00:16]} 34. Qe5 {[%clk 0:00:18]}  Qd8 {[%clk 0:00:13]} 35. Qf5+ {[%clk 0:00:17]}  Kg8 {[%clk 0:00:13]} 36. Qg6 {[%clk 0:00:18]}  Kf8 {[%clk 0:00:13]} 37. Re5 {[%clk 0:00:16]}  Nd3 {[%clk 0:00:13]} 38. Rf5+ {[%clk 0:00:16]}  Kg8 {[%clk 0:00:13]} 39. Qf7+ {[%clk 0:00:13]}  Kh7 {[%clk 0:00:13]} 40. Rxd5 {[%clk 0:00:12]}  Qh4 {[%clk 0:00:11]} 41. Qf5+ {[%clk 0:00:12]}  g6 {[%clk 0:00:10]} 42. Qf7+ {[%clk 0:00:09]}  Kh8 {[%clk 0:00:11]} 43. Qe8+ {[%clk 0:00:09]}  Kg7 {[%clk 0:00:11]} 44. Rd7+ {[%clk 0:00:10]}  Kf6 {[%clk 0:00:11]} 45. Qe7+ {[%clk 0:00:10]}  Kf5 {[%clk 0:00:11]} 46. Qxh4 {[%clk 0:00:10]} 1-0


[Site "https://www.chess.com"]

[Event "Titled Tuesday Blitz November 08 Late 2022"]
[White "Kopacz, Grzegorz"]
[Black "Arbunic Castro, Giovanna"]
[WhiteFideId "1109880"]
[BlackFideId "3400549"]
[WhiteElo "2037"]
[BlackElo "1888"]
[Result "1-0"]
[Round "08"]
[TimeControl "180+1"]
[Date "2022.11.09"]
[WhiteClock "0:01:56"]
[BlackClock "0:00:15"]

1. d4 {[%clk 0:03:00]}  Nf6 {[%clk 0:02:57]} 2. c4 {[%clk 0:03:00]}  g6 {[%clk 0:02:56]} 3. Nc3 {[%clk 0:03:00]}  Bg7 {[%clk 0:02:56]} 4. e4 {[%clk 0:03:00]}  d6 {[%clk 0:02:55]} 5. f3 {[%clk 0:02:57]}  O-O {[%clk 0:02:53]} 6. Be3 {[%clk 0:02:56]}  c6 {[%clk 0:02:45]} 7. Qd2 {[%clk 0:02:54]}  e5 {[%clk 0:02:36]} 8. d5 {[%clk 0:02:52]}  cxd5 {[%clk 0:02:35]} 9. cxd5 {[%clk 0:02:50]}  Qa5 {[%clk 0:02:32]} 10. Nge2 {[%clk 0:02:44]}  Nbd7 {[%clk 0:02:29]} 11. Nc1 {[%clk 0:02:42]}  Nc5 {[%clk 0:02:25]} 12. Be2 {[%clk 0:02:36]}  Nh5 {[%clk 0:02:23]} 13. O-O {[%clk 0:02:35]}  f5 {[%clk 0:02:05]} 14. a3 {[%clk 0:02:31]}  Qd8 {[%clk 0:01:18]} 15. b4 {[%clk 0:02:22]}  Nd7 {[%clk 0:01:13]} 16. Nb3 {[%clk 0:02:22]}  f4 {[%clk 0:01:07]} 17. Bf2 {[%clk 0:02:20]}  g5 {[%clk 0:01:06]} 18. Nb5 {[%clk 0:02:19]}  Ndf6 {[%clk 0:01:04]} 19. Rac1 {[%clk 0:02:13]}  Rf7 {[%clk 0:01:02]} 20. Nxa7 {[%clk 0:02:03]}  Bd7 {[%clk 0:00:25]} 21. Na5 {[%clk 0:01:59]}  b6 {[%clk 0:00:18]} 22. N5c6 {[%clk 0:01:57]}  Rxa7 {[%clk 0:00:15]} 23. Nxd8 {[%clk 0:01:56]} 1-0


[Site "https://www.chess.com"]

[Event "Titled Tuesday Blitz November 08 Late 2022"]
[White "Krishnan, Varun"]
[Black "Wirig, Anthony"]
[WhiteFideId "5054508"]
[BlackFideId "615013"]
[WhiteElo "2549"]
[BlackElo "2487"]
[Result "0-1"]
[Round "08"]
[TimeControl "180+1"]
[Date "2022.11.09"]
[WhiteClock "0:00:33"]
[BlackClock "0:00:31"]

1. e4 {[%clk 0:03:00]}  c5 {[%clk 0:02:55]} 2. Nf3 {[%clk 0:03:00]}  e6 {[%clk 0:02:55]} 3. d4 {[%clk 0:02:58]}  cxd4 {[%clk 0:02:55]} 4. Nxd4 {[%clk 0:02:58]}  Nf6 {[%clk 0:02:56]} 5. Nc3 {[%clk 0:02:57]}  Nc6 {[%clk 0:02:57]} 6. Ndb5 {[%clk 0:02:56]}  Bc5 {[%clk 0:02:56]} 7. Bf4 {[%clk 0:02:54]}  O-O {[%clk 0:02:57]} 8. Bc7 {[%clk 0:02:53]}  Qe7 {[%clk 0:02:57]} 9. Bd6 {[%clk 0:02:53]}  Bxd6 {[%clk 0:02:58]} 10. Qxd6 {[%clk 0:02:53]}  Qd8 {[%clk 0:02:58]} 11. Qd2 {[%clk 0:02:41]}  d5 {[%clk 0:02:51]} 12. exd5 {[%clk 0:02:38]}  exd5 {[%clk 0:02:50]} 13. O-O-O {[%clk 0:02:38]}  a6 {[%clk 0:02:46]} 14. Nd4 {[%clk 0:02:37]}  Re8 {[%clk 0:02:39]} 15. Nxc6 {[%clk 0:02:30]}  bxc6 {[%clk 0:02:40]} 16. Bd3 {[%clk 0:02:29]}  c5 {[%clk 0:02:27]} 17. Rhe1 {[%clk 0:02:11]}  Be6 {[%clk 0:02:23]} 18. Qg5 {[%clk 0:02:05]}  h6 {[%clk 0:02:06]} 19. Qg3 {[%clk 0:02:04]}  Rb8 {[%clk 0:02:01]} 20. Kb1 {[%clk 0:01:34]}  Qa5 {[%clk 0:01:53]} 21. b3 {[%clk 0:01:15]}  Kh8 {[%clk 0:01:27]} 22. Bf1 {[%clk 0:01:07]}  d4 {[%clk 0:01:17]} 23. Ne4 {[%clk 0:01:05]}  Nd5 {[%clk 0:01:15]} 24. Bc4 {[%clk 0:00:57]}  Nb4 {[%clk 0:01:10]} 25. Bd3 {[%clk 0:00:47]}  Qxa2+ {[%clk 0:01:04]} 26. Kc1 {[%clk 0:00:47]}  Bxb3 {[%clk 0:00:48]} 27. Nd6 {[%clk 0:00:35]}  Qa1+ {[%clk 0:00:35]} 28. Kd2 {[%clk 0:00:34]}  Qc3+ {[%clk 0:00:34]} 29. Kc1 {[%clk 0:00:35]}  Na2+ {[%clk 0:00:31]} 30. Kb1 {[%clk 0:00:35]}  Bxc2+ {[%clk 0:00:31]} 31. Kxa2 {[%clk 0:00:33]}  Qb2# {[%clk 0:00:31]} 0-1


[Site "https://www.chess.com"]